bitfinex/quotes_BTCUSD_20220205
["timestamp","ask_amount","ask_price","bid_price","bid_amount"]
[1644053802255,0.61961575,41508.0,41503.0,0.00079354]
[1644053802853,0.5,41507.0,41502.0,0.30547413]
[1644053803052,0.61961575,41508.0,41502.0,0.30547413]
[1644053803255,0.08332603,41503.0,41502.0,0.30547413]
[1644053803859,0.55938325,41508.0,41502.0,0.57403867]
[1644053804655,0.61961376,41508.0,41502.0,0.57403867]
[1644053806102,0.61961376,41508.0,41501.0,0.05048848]
[1644053806301,0.61961376,41508.0,41501.0,0.00048849]
[1644053806507,0.0659577,41503.0,41501.0,0.00048849]
[1644053806703,0.0659577,41503.0,41502.0,0.04999999]
[1644053807302,0.0659577,41503.0,41501.0,0.04999999]
[1644053808948,0.0659577,41503.0,41502.0,0.332207]
[1644053809156,0.0659577,41503.0,41500.0,0.00079358]
[1644053809351,0.06023199,41506.0,41502.0,0.25137458]
[1644053809550,0.300232,41511.0,41505.0,0.04999999]
[1644053809551,0.00079346,41507.0,41505.0,0.04999999]
[1644053810351,0.00079346,41507.0,41506.0,0.332207]
[1644053810651,0.24,41511.0,41506.0,0.33240857]
[1644053810853,0.24,41511.0,41510.0,0.31138791]
[1644053811655,0.24,41511.0,41509.0,0.00020157]
[1644053811853,0.332207,41510.0,41509.0,0.04999999]
[1644053812703,0.332207,41510.0,41509.0,0.05020156]
[1644053812902,0.24,41511.0,41509.0,0.05020156]
[1644053813303,0.24,41511.0,41510.0,0.04999999]
[1644053813503,0.24,41511.0,41510.0,0.05020156]
[1644053813707,0.24,41511.0,41510.0,0.04999999]
[1644053814308,0.24,41511.0,41509.0,0.00020157]
[1644053814505,0.24,41511.0,41509.0,0.04999999]
[1644053814708,0.24,41511.0,41509.0,0.05020156]
[1644053815505,0.24,41511.0,41509.0,0.17064556]
[1644053816956,0.24,41511.0,41509.0,0.12064557]
[1644053817353,0.59034467,41510.0,41507.0,0.06042557]
[1644053817652,0.59575037,41510.0,41506.0,0.00020157]
[1644053817854,0.59575037,41510.0,41505.0,0.00020157]
[1644053818054,0.59575037,41510.0,41504.0,0.02021064]
[1644053818253,0.22372043,41509.0,41504.0,0.02021064]
[1644053818653,0.22372043,41509.0,41504.0,0.00020157]
[1644053818853,0.22372043,41509.0,41503.0,0.11022899]
[1644053819056,0.07309641,41506.0,41503.0,0.05020156]
[1644053819253,0.07309641,41506.0,41504.0,0.332207]
[1644053819458,0.07309641,41506.0,41505.0,0.050089]
[1644053819655,0.07309641,41506.0,41504.0,0.00020157]
[1644053819859,0.07309641,41506.0,41503.0,0.05020156]
[1644053820107,0.07309641,41506.0,41503.0,0.04999999]
[1644053822412,0.20049,41505.0,41503.0,0.04999999]
[1644053822613,0.07309641,41506.0,41502.0,0.00020157]
[1644053822814,0.21359891,41504.0,41501.0,0.0007979]
[1644053823853,0.21359891,41504.0,41500.0,0.00020157]
[1644053824054,0.21359891,41504.0,41500.0,0.00079789]
[1644053824252,0.21359891,41504.0,41500.0,0.00099946]
[1644053824853,0.21359891,41504.0,41500.0,0.00079789]
[1644053825052,0.21359891,41504.0,41498.0,0.00020157]
[1644053825255,0.21359891,41504.0,41500.0,0.0007979]
[1644053825855,0.21351935,41504.0,41500.0,0.0007979]
[1644053826056,0.23948651,41501.0,41500.0,0.0007979]
[1644053826255,0.23948651,41501.0,41498.0,0.00020157]
[1644053826456,0.23948651,41501.0,41500.0,0.0007979]
[1644053827356,0.23948651,41501.0,41498.0,0.00020157]
[1644053827601,0.23948651,41501.0,41498.0,0.00079792]
[1644053827801,0.23948651,41501.0,41498.0,0.00099949]
[1644053828600,0.23948651,41501.0,41498.0,0.00020157]
[1644053828800,0.23948651,41501.0,41498.0,0.33240857]
[1644053829000,0.07309641,41506.0,41498.0,0.00020157]
[1644053829200,0.07309641,41506.0,41497.0,0.41208934]
[1644053829401,0.0761415,41499.0,41497.0,0.41208934]
[1644053829602,0.0761415,41499.0,41498.0,0.332207]
[1644053829807,0.0761415,41499.0,41498.0,0.33240857]
[1644053830004,0.0761415,41499.0,41498.0,0.39264257]
[1644053831853,0.0761415,41499.0,41498.0,0.44264256]
[1644053832654,0.0761415,41499.0,41498.0,0.39264257]
[1644053837712,0.24,41499.0,41498.0,0.39264257]
[1644053838855,0.24,41499.0,41498.0,0.589816]
[1644053839355,0.31751538,41499.0,41498.0,0.589816]
[1644053840654,0.31751538,41499.0,41498.0,0.39264257]
[1644053841255,0.24,41499.0,41498.0,0.39264257]
[1644053841653,0.24,41499.0,41498.0,0.64454274]
[1644053842502,0.24,41499.0,41498.0,0.39264257]
[1644053845705,0.24,41499.0,41498.0,0.44264256]
[1644053848957,0.23991399,41499.0,41498.0,0.44264256]
[1644053852207,0.23991399,41499.0,41498.0,0.39264257]
[1644053852807,0.23991399,41499.0,41498.0,0.392441]
[1644053853007,0.23991399,41499.0,41498.0,0.3926426]
[1644053858728,0.23991399,41499.0,41498.0,0.44264259]
[1644053858931,0.23991399,41499.0,41498.0,0.3926426]
[1644053859130,0.23991399,41499.0,41498.0,0.44264259]
[1644053860533,0.23991399,41499.0,41498.0,0.82980433]
[1644053861134,0.23991399,41499.0,41498.0,0.83645433]
[1644053862758,0.23991399,41499.0,41498.0,1.55678779]
[1644053864162,0.23991399,41499.0,41498.0,0.83645433]
[1644053864563,0.23991399,41499.0,41498.0,0.47510896]
[1644053866210,0.23991399,41499.0,41498.0,0.44929259]
[1644053869755,0.23991399,41499.0,41498.0,0.47511881]
[1644053870356,0.23991399,41499.0,41498.0,0.83668907]
[1644053871158,0.23991399,41499.0,41498.0,0.44929259]
[1644053871557,0.23982574,41499.0,41498.0,0.44929259]
[1644053874510,0.23982574,41499.0,41498.0,0.3992926]
[1644053874710,0.23982574,41499.0,41498.0,0.44929259]
[1644053876966,0.23982574,41499.0,41498.0,0.3390586]
[1644053877168,0.23982574,41499.0,41498.0,0.338857]
[1644053878368,0.23982574,41499.0,41498.0,0.3390586]
[1644053879370,0.23982574,41499.0,41498.0,0.3992916]
[1644053880210,0.23982574,41499.0,41498.0,0.44908999]
[1644053881011,0.23982574,41499.0,41498.0,0.39909]
[1644053885963,0.23982574,41499.0,41498.0,0.78626013]
[1644053886362,0.23982574,41499.0,41498.0,0.39909]
[1644053887808,0.23982574,41499.0,41498.0,0.39889]
[1644053889909,0.23982574,41499.0,41498.0,0.68148855]
[1644053890110,0.23982574,41499.0,41498.0,0.78148855]
[1644053893963,0.23982574,41499.0,41498.0,0.78137606]
[1644053896012,0.23982574,41499.0,41498.0,0.91603068]
[1644053896213,0.23982574,41499.0,41498.0,1.01603068]
[1644053896711,0.23982574,41499.0,41498.0,0.88137606]
[1644053896911,0.23982574,41499.0,41498.0,0.78137606]
[1644053898515,0.23982574,41499.0,41498.0,0.83137605]
[1644053898958,0.23982574,41499.0,41498.0,0.5487775]
[1644053900460,0.23982574,41499.0,41498.0,0.8435407]
[1644053900659,0.45512574,41499.0,41498.0,0.8435407]
[1644053901061,0.25259044,41499.0,41498.0,0.8435407]
[1644053901465,0.25259044,41499.0,41498.0,0.8935407]
[1644053901659,0.2176969,41499.0,41498.0,0.9435407]
[1644053902160,0.17706644,41499.0,41498.0,0.9435407]
[1644053905610,0.04640136,41499.0,41498.0,0.9435407]
[1644053906759,0.28640136,41499.0,41498.0,0.9435407]
[1644053911007,0.11410092,41507.0,41498.0,0.9435407]
[1644053911209,0.11410092,41507.0,41505.0,0.11021799]
[1644053911412,0.5721,41511.0,41505.0,0.11021799]
[1644053911608,0.5721,41511.0,41508.0,0.2004448]
[1644053911809,0.55,41510.0,41505.0,0.04999999]
[1644053912010,0.45738213,41514.0,41507.0,0.24391856]
[1644053912212,0.0768897,41512.0,41507.0,0.24391856]
[1644053912611,0.0768897,41512.0,41509.0,0.06022]
[1644053912914,0.07769061,41512.0,41509.0,0.06022]
[1644053913755,0.0768897,41512.0,41509.0,0.06022]
[1644053914260,0.0768897,41512.0,41507.0,0.060225]
[1644053915055,0.0768897,41512.0,41507.0,0.33670715]
[1644053915255,0.07719834,41512.0,41507.0,0.33670715]
[1644053915463,0.00030864,41512.0,41509.0,0.04999999]
[1644053915660,0.00030864,41512.0,41510.0,0.360214]
[1644053915857,0.00034942,41518.0,41511.0,1.1]
[1644053916058,0.30994658,41526.0,41511.0,1.1]
[1644053916059,0.22780194,41523.0,41517.0,0.04999999]
[1644053916258,0.22780194,41523.0,41521.0,0.04999999]
[1644053916458,0.02110099,41523.0,41521.0,0.04999999]
[1644053916656,0.02110099,41523.0,41522.0,0.060188]
[1644053916857,0.02145032,41523.0,41522.0,0.060188]
[1644053917057,0.00034933,41524.0,41522.0,0.060188]
[1644053917257,0.07248822,41526.0,41522.0,0.060188]
[1644053917258,0.00034933,41525.0,41522.0,0.060188]
[1644053917509,0.07283755,41526.0,41522.0,0.060188]
[1644053917709,0.24034933,41525.0,41522.0,0.060188]
[1644053917909,0.24,41525.0,41522.0,0.060188]
[1644053918112,0.24034933,41525.0,41522.0,0.060188]
[1644053919110,0.00034933,41525.0,41522.0,0.060188]
[1644053919311,0.07248822,41526.0,41522.0,0.060188]
[1644053919512,0.00034933,41525.0,41522.0,0.060188]
[1644053919711,0.07248822,41526.0,41522.0,0.060188]
[1644053919911,0.00034933,41525.0,41522.0,0.060188]
[1644053920110,0.07363798,41526.0,41521.0,0.17037499]
[1644053920310,0.00034933,41525.0,41520.0,0.060189]
[1644053920511,0.07328865,41526.0,41519.0,0.26180549]
[1644053920715,0.00034933,41525.0,41519.0,0.31180549]
[1644053920910,0.07328865,41526.0,41519.0,0.41180549]
[1644053921112,0.00023381,41525.0,41519.0,0.41180549]
[1644053921367,0.00080045,41524.0,41519.0,0.41180549]
[1644053921567,0.00080045,41524.0,41519.0,0.270407]
[1644053921770,0.00103426,41524.0,41519.0,0.270407]
[1644053921967,0.00103426,41524.0,41520.0,0.04999999]
[1644053921968,0.00080045,41524.0,41520.0,0.04999999]
[1644053922172,0.00023381,41527.0,41520.0,0.04999999]
[1644053922368,0.3,41528.0,41523.0,0.04999999]
[1644053922369,0.00023381,41524.0,41523.0,0.04999999]
[1644053922567,0.00023381,41527.0,41523.0,0.04999999]
[1644053922769,0.2873,41528.0,41523.0,0.04999999]
[1644053923069,0.00023381,41527.0,41523.0,0.060192]
[1644053923273,0.07522666,41524.0,41523.0,0.12038208]
[1644053923473,0.00023381,41527.0,41523.0,0.12038208]
[1644053923667,0.2873,41528.0,41523.0,0.12038208]
[1644053923867,0.00023381,41527.0,41523.0,0.12038208]
[1644053924067,0.00023381,41528.0,41523.0,0.12038208]
[1644053924267,0.00023381,41529.0,41523.0,0.12038208]
[1644053924471,0.07275729,41530.0,41524.0,0.14270361]
[1644053924668,0.00023381,41529.0,41524.0,0.120385]
[1644053924870,0.00031364,41528.0,41521.0,0.20593651]
[1644053925115,0.00031364,41528.0,41521.0,0.25593652]
[1644053925313,0.00031364,41528.0,41521.0,0.15593652]
[1644053925613,0.20154214,41525.0,41521.0,0.15593652]
[1644053925817,0.08652165,41523.0,41521.0,0.15593652]
[1644053926216,0.00080613,41525.0,41521.0,0.20593651]
[1644053926415,0.00023381,41524.0,41521.0,0.15593652]
[1644053926614,0.00103994,41525.0,41521.0,0.15593652]
[1644053926816,0.00023381,41524.0,41521.0,0.15593652]
[1644053927016,0.00023381,41527.0,41521.0,0.15593652]
[1644053927216,0.4767545,41528.0,41521.0,0.20593651]
[1644053927416,0.07815711,41524.0,41521.0,0.15593652]
[1644053927817,0.07839092,41524.0,41521.0,0.15593652]
[1644053928421,0.07815711,41524.0,41521.0,0.15593652]
[1644053928866,0.07839092,41524.0,41521.0,0.15593652]
[1644053929067,0.28839092,41524.0,41521.0,0.15593652]
[1644053929666,0.28815711,41524.0,41521.0,0.03555252]
[1644053929867,0.28839092,41524.0,41521.0,0.03555252]
[1644053930766,0.28815711,41524.0,41521.0,0.03555252]
[1644053931165,0.28839092,41524.0,41521.0,0.03555252]
[1644053931366,0.28839092,41524.0,41521.0,0.09575452]
[1644053931665,0.28839092,41524.0,41521.0,0.060202]
[1644053932067,0.21,41524.0,41521.0,0.060202]
[1644053932511,0.21023381,41524.0,41521.0,0.060202]
[1644053933516,0.21,41524.0,41521.0,0.060202]
[1644053933911,0.21023381,41524.0,41521.0,0.060202]
[1644053934511,0.21,41524.0,41521.0,0.060202]
[1644053934711,0.21023381,41524.0,41521.0,0.060202]
[1644053935712,0.21,41524.0,41521.0,0.060202]
[1644053935913,0.21023381,41524.0,41521.0,0.060202]
[1644053936770,0.21,41524.0,41521.0,0.060202]
[1644053937171,0.21023381,41524.0,41521.0,0.060202]
[1644053938171,0.21,41524.0,41521.0,0.060202]
[1644053938370,0.21023381,41524.0,41521.0,0.060202]
[1644053939171,0.20358781,41524.0,41521.0,0.060202]
[1644053939372,0.25673843,41523.0,41521.0,0.060202]
[1644053939572,0.25697224,41523.0,41519.0,0.060206]
[1644053939770,0.25697224,41523.0,41519.0,0.12041]
[1644053940419,0.25777789,41523.0,41519.0,0.12041]
[1644053941421,0.25697224,41523.0,41519.0,0.12041]
[1644053941620,0.25777789,41523.0,41519.0,0.12041]
[1644053942617,0.25697224,41523.0,41519.0,0.12041]
[1644053943018,0.25777789,41523.0,41519.0,0.12041]
[1644053943970,0.45,41522.0,41516.0,0.39080999]
[1644053944167,0.45023381,41522.0,41516.0,0.39080999]
[1644053944366,0.00023381,41522.0,41516.0,0.39080999]
[1644053944569,0.25777789,41523.0,41516.0,0.39080999]
[1644053944866,0.21687929,41520.0,41518.0,0.060206]
[1644053945867,0.21687929,41520.0,41516.0,0.24081]
[1644053946670,0.21791878,41520.0,41516.0,0.24081]
[1644053946871,0.21768497,41520.0,41516.0,0.24081]
[1644053947171,0.00080568,41520.0,41517.0,0.38223899]
[1644053947372,0.00103949,41520.0,41517.0,0.50891765]
[1644053947623,0.00023381,41521.0,41519.0,0.049599]
[1644053947824,0.00080568,41521.0,41519.0,0.169994]
[1644053948425,0.00080568,41521.0,41519.0,0.120395]
[1644053948826,0.00023381,41523.0,41519.0,0.180593]
[1644053949030,0.00080566,41522.0,41519.0,0.180593]
[1644053949225,0.00080566,41522.0,41520.0,0.060198]
[1644053949827,0.00023381,41523.0,41520.0,0.11019799]
[1644053950028,0.203354,41524.0,41520.0,0.17039099]
[1644053950326,0.00023381,41523.0,41520.0,0.17039099]
[1644053950627,0.20358781,41524.0,41522.0,0.27558223]
[1644053950925,0.203354,41524.0,41523.0,0.060191]
[1644053959370,0.203354,41524.0,41523.0,0.74228997]
[1644053959566,0.203354,41524.0,41523.0,0.99058997]
[1644053959964,0.203354,41524.0,41523.0,1.20116452]
[1644053962368,0.00034924,41525.0,41524.0,0.83383701]
[1644053962620,0.00076395,41526.0,41524.0,1.2076743]
[1644053962817,0.00076395,41526.0,41525.0,0.65046953]
[1644053963217,0.00034924,41532.0,41525.0,0.75046953]
[1644053963419,0.00306457,41534.0,41529.0,0.27554695]
[1644053963819,0.0034138,41534.0,41529.0,0.27554695]
[1644053964018,0.00306457,41534.0,41529.0,0.27554695]
[1644053964419,0.00034923,41536.0,41530.0,0.060183]
[1644053964622,0.0007662,41534.0,41530.0,0.060183]
[1644053965319,0.0007662,41534.0,41530.0,0.12036544]
[1644053965518,0.00034923,41535.0,41530.0,0.12036544]
[1644053965717,0.06873613,41536.0,41530.0,0.12036544]
[1644053965718,0.00076619,41534.0,41530.0,0.12036544]
[1644053966770,0.00034923,41535.0,41530.0,0.12036544]
[1644053966968,0.00076603,41534.0,41530.0,0.12036544]
[1644053967568,0.00076603,41534.0,41530.0,0.060183]
[1644053967970,0.00034923,41535.0,41530.0,0.060183]
[1644053968269,0.00076603,41534.0,41530.0,0.060183]
[1644053969070,0.00034923,41535.0,41529.0,0.22554696]
[1644053969271,0.06908536,41536.0,41529.0,0.22554696]
[1644053969470,0.00076603,41534.0,41528.0,0.00627305]
[1644053969872,0.00111526,41534.0,41528.0,0.00627305]
[1644053970118,0.00076603,41534.0,41528.0,0.00627305]
[1644053970321,0.00034923,41535.0,41530.0,0.060191]
[1644053970521,0.0007659,41533.0,41530.0,0.060191]
[1644053970920,0.0007659,41533.0,41530.0,0.11019099]
[1644053971121,0.0007659,41533.0,41530.0,0.060191]
[1644053971520,0.00034923,41536.0,41530.0,0.060191]
[1644053971722,0.00062174,41534.0,41530.0,0.17037597]
[1644053972021,0.00027251,41534.0,41530.0,0.17037597]
[1644053972423,0.08907752,41533.0,41530.0,0.12037598]
[1644053972622,0.08942675,41533.0,41530.0,0.17037597]
[1644053972824,0.08942675,41533.0,41530.0,0.12037598]
[1644053973022,0.00027251,41534.0,41530.0,0.060191]
[1644053973874,0.00034923,41536.0,41528.0,0.24701105]
[1644053974076,0.08481838,41530.0,41529.0,0.06018573]
[1644053974277,0.08481838,41530.0,41528.0,0.12664705]
[1644053974474,0.00034923,41533.0,41528.0,0.12664705]
[1644053974675,0.00078794,41534.0,41529.0,0.060186]
[1644053974882,0.00034923,41533.0,41529.0,0.060186]
[1644053975176,0.00034923,41536.0,41529.0,0.060186]
[1644053975376,0.00078795,41533.0,41529.0,0.120372]
[1644053976376,0.00034923,41535.0,41529.0,0.18055755]
[1644053976577,0.00078795,41533.0,41531.0,0.060186]
[1644053976776,0.07736968,41536.0,41531.0,0.060186]
[1644053976777,0.04815763,41536.0,41531.0,0.060186]
[1644053977627,0.001,41537.0,41533.0,0.060186]
[1644053980323,0.07316263,41537.0,41533.0,0.060186]
[1644053980725,0.07316263,41537.0,41528.0,0.12664705]
[1644053980925,0.07316263,41537.0,41531.0,0.060189]
[1644053981127,0.332239,41536.0,41531.0,0.060189]
[1644053981373,0.00080636,41535.0,41531.0,0.060189]
[1644053982373,0.07316263,41537.0,41531.0,0.060189]
[1644053982576,0.00080637,41535.0,41531.0,0.060189]
[1644053983475,0.07316263,41537.0,41531.0,0.060189]
[1644053983675,0.07316263,41537.0,41531.0,0.14393114]
[1644053983876,0.00080637,41535.0,41531.0,0.14393114]
[1644053984276,0.00080637,41535.0,41531.0,0.20411614]
[1644053984677,0.07316263,41537.0,41531.0,0.20411614]
[1644053984876,0.00080637,41535.0,41531.0,0.20411614]
[1644053986030,0.001,41537.0,41531.0,0.14393114]
[1644053986231,0.00080637,41535.0,41531.0,0.14393114]
[1644053986830,0.00080637,41535.0,41531.0,0.20411714]
[1644053987231,0.07473703,41537.0,41531.0,0.20411714]
[1644053987432,0.00080637,41535.0,41531.0,0.20411714]
[1644053988436,0.07473703,41537.0,41531.0,0.20411714]
[1644053988633,0.00080637,41535.0,41531.0,0.20411714]
[1644053989266,0.00080637,41535.0,41531.0,0.120375]
[1644053989469,0.332239,41534.0,41528.0,0.120374]
[1644053989670,0.07473703,41537.0,41528.0,0.120374]
[1644053989871,0.00080637,41535.0,41528.0,0.120374]
[1644053990371,0.00080637,41535.0,41530.0,0.0762921]
[1644053990769,0.07473703,41537.0,41530.0,0.0762921]
[1644053990969,0.00080636,41535.0,41530.0,0.0762921]
[1644053991168,0.00080636,41535.0,41530.0,0.1364831]
[1644053991967,0.07473703,41537.0,41530.0,0.1364831]
[1644053991968,0.00034917,41536.0,41530.0,0.1364831]
[1644053992167,0.00080636,41535.0,41530.0,0.1364831]
[1644053992376,0.00080636,41535.0,41530.0,0.18648309]
[1644053992622,0.00080636,41535.0,41533.0,0.04999999]
[1644053993224,0.00034917,41536.0,41533.0,0.04999999]
[1644053993423,0.00134917,41537.0,41533.0,0.04999999]
[1644053993622,0.00034917,41536.0,41533.0,0.04999999]
[1644053993822,0.001,41537.0,41533.0,0.04999999]
[1644053993823,0.00134917,41537.0,41533.0,0.04999999]
[1644053994023,0.00034917,41536.0,41533.0,0.04999999]
[1644053994223,0.00134917,41537.0,41533.0,0.04999999]
[1644053994425,0.00034917,41536.0,41534.0,0.060181]
[1644053994624,0.00134917,41537.0,41534.0,0.060181]
[1644053994825,0.00034917,41536.0,41534.0,0.060181]
[1644053995024,0.00134917,41537.0,41534.0,0.060181]
[1644053995226,0.00034917,41536.0,41534.0,0.060181]
[1644053995424,0.00134917,41537.0,41534.0,0.060181]
[1644053995627,0.00034917,41536.0,41534.0,0.060181]
[1644053995824,0.00134917,41537.0,41534.0,0.060181]
[1644053996023,0.00034917,41536.0,41534.0,0.060181]
[1644053996284,0.00134917,41537.0,41534.0,0.060181]
[1644053996476,0.00034917,41536.0,41534.0,0.060181]
[1644053996675,0.00134917,41537.0,41534.0,0.060181]
[1644053996876,0.00034917,41536.0,41534.0,0.060181]
[1644053997076,0.07431021,41537.0,41534.0,0.060181]
[1644053997278,0.00034917,41536.0,41534.0,0.060181]
[1644053997476,0.07431021,41537.0,41534.0,0.060181]
[1644053997676,0.00034917,41536.0,41534.0,0.060181]
[1644053997876,0.07431021,41537.0,41534.0,0.060181]
[1644053998079,0.00034917,41536.0,41531.0,0.120358]
[1644053998380,0.07431021,41537.0,41532.0,0.060186]
[1644053998579,0.00034917,41536.0,41532.0,0.060186]
[1644053998779,0.07431021,41537.0,41527.0,0.97291762]
[1644053998979,0.2636967,41529.0,41528.0,0.5]
[1644053999179,0.2636967,41529.0,41528.0,0.332239]
[1644053999880,0.2636967,41529.0,41525.0,0.120384]
[1644054000527,0.2636967,41529.0,41527.0,0.04999999]
[1644054000727,0.2636967,41529.0,41528.0,0.060192]
[1644054003532,0.2636967,41529.0,41525.0,0.120384]
[1644054004268,0.2636967,41529.0,41525.0,0.36252747]
[1644054004669,0.2636967,41529.0,41525.0,0.220384]
[1644054004869,0.28805282,41528.0,41522.0,0.28646882]
[1644054005071,0.28797982,41528.0,41521.0,0.060203]
[1644054005270,0.28797982,41528.0,41518.0,0.04999999]
[1644054005971,0.08235296,41522.0,41518.0,0.04999999]
[1644054006176,0.08235296,41522.0,41520.0,0.060205]
[1644054007924,0.08235296,41522.0,41521.0,0.21385411]
[1644054009023,0.08235296,41522.0,41521.0,0.54609311]
[1644054009425,0.1217,41528.0,41523.0,0.0602]
[1644054009624,0.2636967,41529.0,41523.0,0.114378]
[1644054010524,0.06404489,41529.0,41523.0,0.20355616]
[1644054010724,0.06404489,41529.0,41523.0,0.26375067]
[1644054014276,0.06404489,41529.0,41523.0,0.17457251]
[1644054014477,0.06404489,41529.0,41524.0,0.11018861]
[1644054014677,0.06404489,41529.0,41526.0,0.060188]
[1644054015524,0.06276178,41529.0,41526.0,0.060188]
[1644054016123,0.06276178,41529.0,41526.0,0.1203766]
[1644054016325,0.06276178,41529.0,41527.0,0.05417]
[1644054016527,0.06276178,41529.0,41526.0,0.0120386]
[1644054017327,0.06276178,41529.0,41525.0,0.228713]
[1644054017528,0.06276178,41529.0,41528.0,0.06019]
[1644054020374,0.29623317,41533.0,41528.0,0.06019]
[1644054020576,0.29623317,41533.0,41528.0,0.114359]
[1644054022521,0.07134721,41529.0,41528.0,0.114359]
[1644054022922,0.29623317,41533.0,41528.0,0.114359]
[1644054024225,0.332239,41532.0,41526.0,0.060196]
[1644054024428,0.00034917,41533.0,41526.0,0.060196]
[1644054024726,0.10022876,41534.0,41526.0,0.060196]
[1644054024924,0.33258817,41533.0,41526.0,0.060196]
[1644054025123,0.31799387,41534.0,41526.0,0.060196]
[1644054025325,0.00034917,41533.0,41528.0,0.06884467]
[1644054025525,0.04092177,41534.0,41528.0,0.12903767]
[1644054025724,0.00034917,41533.0,41528.0,0.12903767]
[1644054025925,0.01971966,41534.0,41528.0,0.12903767]
[1644054026773,0.01971966,41534.0,41529.0,0.06018426]
[1644054026977,0.01971966,41534.0,41530.0,0.060188]
[1644054027572,0.00034917,41534.0,41530.0,0.060188]
[1644054027773,0.00111514,41535.0,41530.0,0.060188]
[1644054027973,0.00034917,41534.0,41530.0,0.060188]
[1644054028174,0.00034917,41535.0,41530.0,0.060188]
[1644054028376,0.00074571,41535.0,41530.0,0.060188]
[1644054028575,0.00109488,41535.0,41530.0,0.060188]
[1644054029273,0.00034917,41535.0,41530.0,0.1203704]
[1644054029479,0.00074934,41535.0,41532.0,0.060183]
[1644054029674,0.00109851,41535.0,41532.0,0.060183]
[1644054030524,0.00034917,41535.0,41532.0,0.060183]
[1644054030725,0.08561781,41536.0,41532.0,0.060183]
[1644054031126,0.0010985,41536.0,41532.0,0.060183]
[1644054031725,0.00034917,41536.0,41532.0,0.060183]
[1644054031926,0.00072219,41536.0,41532.0,0.060183]
[1644054032130,0.00107136,41536.0,41532.0,0.060183]
[1644054032928,0.00034917,41536.0,41532.0,0.060183]
[1644054033129,0.00072219,41536.0,41532.0,0.060183]
[1644054033329,0.00107136,41536.0,41532.0,0.060183]
[1644054033971,0.00034917,41536.0,41532.0,0.060183]
[1644054034170,0.00072286,41536.0,41532.0,0.060183]
[1644054034371,0.00107203,41536.0,41532.0,0.060183]
[1644054034572,0.00107203,41536.0,41534.0,0.24357053]
[1644054034776,0.00072286,41536.0,41534.0,0.24357053]
[1644054035172,0.07919089,41537.0,41534.0,0.24357053]
[1644054035373,0.07884172,41537.0,41532.0,0.060183]
[1644054035574,0.07991557,41537.0,41532.0,0.060183]
[1644054036373,0.07919089,41537.0,41533.0,0.22043553]
[1644054036572,0.07991557,41537.0,41533.0,0.22043553]
[1644054036975,0.07991557,41537.0,41529.0,0.120369]
[1644054037622,0.07919089,41537.0,41529.0,0.120369]
[1644054037820,0.00072459,41535.0,41529.0,0.120369]
[1644054038020,0.00072459,41535.0,41531.0,0.24066472]
[1644054038821,0.00034917,41536.0,41531.0,0.24066472]
[1644054039019,0.07884172,41537.0,41531.0,0.24066472]
[1644054039020,0.07919089,41537.0,41531.0,0.24066472]
[1644054039222,0.00072445,41535.0,41531.0,0.24066472]
[1644054040027,0.00034917,41536.0,41531.0,0.24066472]
[1644054040223,0.00072445,41535.0,41531.0,0.24066472]
[1644054040624,0.00072445,41535.0,41531.0,0.30085372]
[1644054040924,0.00062933,41535.0,41531.0,0.24066472]
[1644054041376,0.00034917,41536.0,41531.0,0.24066472]
[1644054041576,0.07919089,41537.0,41531.0,0.24066472]
[1644054041776,0.00034917,41536.0,41531.0,0.24066472]
[1644054041974,0.07919089,41537.0,41531.0,0.30085372]
[1644054042178,0.27286629,41536.0,41531.0,0.30085372]
[1644054042480,0.27251712,41536.0,41531.0,0.30085372]
[1644054042680,0.27286629,41536.0,41531.0,0.30085372]
[1644054043178,0.00034917,41536.0,41531.0,0.30085372]
[1644054043377,0.00134917,41537.0,41531.0,0.30085372]
[1644054045124,0.08977624,41534.0,41531.0,0.30085372]
[1644054046526,0.04999999,41532.0,41527.0,0.28910804]
[1644054046925,0.30949267,41534.0,41528.0,0.3]
[1644054047128,0.08977624,41534.0,41529.0,0.060192]
[1644054047725,0.26140695,41533.0,41529.0,0.060192]
[1644054047930,0.08977624,41534.0,41529.0,0.060192]
[1644054048327,0.08977624,41534.0,41529.0,0.11019199]
[1644054048528,0.2536836,41532.0,41529.0,0.11019199]
[1644054048970,0.2536836,41532.0,41529.0,0.060192]
[1644054049370,0.2536836,41532.0,41529.0,0.11019199]
[1644054050970,0.2536836,41532.0,41529.0,0.060192]
[1644054051171,0.2536836,41532.0,41529.0,0.11019199]
[1644054051372,0.08977624,41534.0,41529.0,0.16436199]
[1644054051572,0.08977624,41534.0,41531.0,0.060189]
[1644054051773,0.35562766,41534.0,41531.0,0.060189]
[1644054052173,0.25860858,41533.0,41531.0,0.060189]
[1644054052626,0.25860858,41533.0,41529.0,0.060193]
[1644054052926,0.25860858,41533.0,41524.0,0.04999999]
[1644054053129,0.279426,41534.0,41524.0,0.04999999]
[1644054053325,0.5415609,41534.0,41524.0,0.04999999]
[1644054053725,0.5415609,41534.0,41526.0,0.060198]
[1644054053925,0.45178466,41534.0,41526.0,0.060198]
[1644054054127,0.332239,41533.0,41523.0,0.120391]
[1644054054328,0.332239,41533.0,41524.0,0.04999999]
[1644054054528,0.332239,41533.0,41523.0,0.120391]
[1644054054727,0.20491053,41523.0,41520.0,0.05]
[1644054054928,0.20491053,41523.0,41521.0,0.56647031]
[1644054055328,0.28256883,41523.0,41522.0,0.060204]
[1644054055527,0.0776583,41523.0,41522.0,0.060204]
[1644054056577,0.26124894,41526.0,41522.0,0.060204]
[1644054056779,0.26124894,41526.0,41524.0,0.060197]
[1644054058380,0.08766997,41527.0,41524.0,0.060197]
[1644054058577,0.08766997,41527.0,41524.0,0.114372]
[1644054058775,0.26074825,41529.0,41524.0,0.114372]
[1644054058976,0.1213,41531.0,41528.0,0.04999999]
[1644054059176,0.3733,41538.0,41530.0,0.120368]
[1644054059177,0.3,41536.0,41530.0,0.120368]
[1644054059777,0.30079081,41536.0,41531.0,0.20124771]
[1644054060024,0.30079081,41536.0,41531.0,0.31559771]
[1644054060425,0.37343257,41536.0,41531.0,0.31559771]
[1644054060622,0.37422341,41536.0,41531.0,0.31559771]
[1644054061423,0.30079084,41536.0,41531.0,0.31559771]
[1644054061622,0.3,41536.0,41531.0,0.31559771]
[1644054061823,0.30076673,41536.0,41531.0,0.31559771]
[1644054062324,0.30076673,41536.0,41531.0,0.26143171]
[1644054062923,0.3,41536.0,41531.0,0.26143171]
[1644054063124,0.00076673,41536.0,41531.0,0.26143171]
[1644054064075,0.34404328,41537.0,41531.0,0.26143171]
[1644054064273,0.00076673,41536.0,41531.0,0.26143171]
[1644054064873,0.00076673,41536.0,41531.0,0.32161455]